{"text_format":"1","workbook":"xlsx","n_sheets":3,"sheets":["Fórmulas","Hoja2","Hoja3"],"not_rendered":{"charts":0,"images":1,"macros":1,"external_links":0,"defined_names":0,"comments":0,"pivot_tables":0},"unopened":[],"bounds":{"document_bytes":16777216,"sheet_cells":100000,"rows_first":2000,"rows_last":500,"rows_between":2000,"halvings":0,"cell_chars":16384,"cell_head_chars":4096},"cells_cut":0,"cells_raw":0,"read":"whole","date_system":"1900"}

{"sheet":"Fórmulas","index":0,"n_rows":20,"n_cols":12,"rows_kept":20,"cut":false,"hidden":false,"merged":[]}
[]
[null,null,null,null,null,null,"Uso de funciones",null,null,null,"Recursión en columna"]
[null,"F1","F2","F3"]
[1,{"$f":"COMBIN(2*A4,A4)/(A4+1)","v":1},{"$f":"FACT(2*A4)/FACT(A4+1)/FACT(A4)","v":1},{"$f":"2^A4*FACTDOUBLE(2*A4-1)/FACT(A4+1)","v":1},null,null,"Función directa, CATALAN(N)",null,null,null,1,{"$f":"1","v":1}]
[2,{"$f":"COMBIN(2*A5,A5)/(A5+1)","v":2},{"$f":"FACT(2*A5)/FACT(A5+1)/FACT(A5)","v":2},{"$f":"2^A5*FACTDOUBLE(2*A5-1)/FACT(A5+1)","v":2},null,null,null,null,null,null,2,{"$f":"L4*2*(2*K5-1)/(K5+1)","v":2}]
[3,5,5,5,null,null,"Valor de N",null,9,null,3,{"$f":"L5*2*(2*K6-1)/(K6+1)","v":5}]
[4,14,14,14,null,null,null,null,null,null,4,14]
[5,42,42,42,null,null,"Número de Catalan",null,{"$f":"catalan(I6)","v":4862},null,5,42]
[6,131.99999999999997,132,132,null,null,null,null,null,null,6,132]
[7,429,429,429,null,null,"Función como producto: CATALAN2(N)",null,null,null,7,429]
[8,1429.9999999999998,1430,1430,null,null,null,null,null,null,8,1430]
[9,4861.9999999999991,4862,4862,null,null,"Valor de N",null,9,null,9,4862]
[10,16796,16796,16796,null,null,null,null,null,null,10,16796]
[null,null,null,null,null,null,"Número de Catalan",null,{"$f":"catalan2(I12)","v":4862},null,11,58786]
[null,"Números de Catalan - Fórmulas directas",null,null,null,null,null,null,null,null,12,208012]
[null,null,null,null,null,null,"Versión recursiva: CATALAN3(N)",null,null,null,13,742900]
[null,null,null,null,null,null,null,null,null,null,14,2674440]
[null,null,null,null,null,null,"Valor de N",null,9]
[]
[null,null,null,null,null,null,"Número de Catalan",null,{"$f":"catalan3(I18)","v":4862}]

{"sheet":"Hoja2","index":1,"n_rows":0,"n_cols":0,"rows_kept":0,"cut":false,"hidden":false,"merged":[]}

{"sheet":"Hoja3","index":2,"n_rows":0,"n_cols":0,"rows_kept":0,"cut":false,"hidden":false,"merged":[]}